bitfinex/quotes_SOLUSD_20220210
["timestamp","ask_amount","ask_price","bid_price","bid_amount"]
[1644472418723,23.893,111.77,111.72,13.6761]
[1644472419423,66.43677914,111.77,111.72,13.6761]
[1644472420025,4.830927,111.76,111.72,13.4261]
[1644472420227,4.830927,111.76,111.72,13.6761]
[1644472421025,5.080927,111.76,111.72,13.6761]
[1644472421326,0.25,111.76,111.72,13.6761]
[1644472421825,66.43677914,111.77,111.72,13.6761]
[1644472422024,66.68677914,111.77,111.72,13.6761]
[1644472424128,66.68677914,111.77,111.72,13.4261]
[1644472424328,66.68677914,111.77,111.72,13.6761]
[1644472425428,4.962216,111.76,111.72,13.4261]
[1644472425629,39.57841424,111.75,111.72,13.4261]
[1644472426230,6.06439994,111.74,111.72,13.4261]
[1644472426930,44.00364863,111.73,111.72,13.4261]
[1644472427531,44.00364863,111.73,111.71,13.4295]
[1644472427731,44.00364863,111.73,111.71,13.6795]
[1644472428131,6.06439994,111.72,111.71,13.6795]
[1644472428333,3.03219997,111.72,111.71,13.6795]
[1644472429832,6.06439994,111.72,111.71,13.6795]
[1644472430437,6.06439994,111.72,111.71,13.4295]
[1644472430634,6.06439994,111.72,111.71,4.18582729]
[1644472430837,26.53463594,111.72,111.69,23.7708]
[1644472431035,11.860884,111.71,111.69,0.25]
[1644472431736,42.19562552,111.71,111.69,13.4316]
[1644472431936,30.33474152,111.71,111.69,13.4316]
[1644472432238,3.03219997,111.7,111.69,13.4316]
[1644472434840,30.33474152,111.71,111.69,13.4316]
[1644472435539,30.33474152,111.71,111.69,13.6816]
[1644472443348,6.06439994,111.7,111.69,13.6816]
[1644472443552,30.33474152,111.71,111.69,13.6816]
[1644472444350,38.0931,111.75,111.69,13.6816]
[1644472444550,81.619792,111.74,111.69,13.6816]
[1644472445250,81.869792,111.74,111.69,13.6816]
[1644472445454,38.28040748,111.73,111.69,13.6816]
[1644472445750,22.658776,111.72,111.69,13.6816]
[1644472445950,36.0117347,111.71,111.69,13.6816]
[1644472446154,3.03219997,111.7,111.69,13.6816]
[1644472446555,36.0117347,111.71,111.69,13.6816]
[1644472449382,0.25,111.74,111.69,13.6816]
[1644472449582,32.320274,111.73,111.69,13.7056]
[1644472449882,79.430936,111.74,111.69,13.7056]
[1644472450382,35.86802232,111.73,111.69,13.7056]
[1644472450785,20.464713,111.72,111.69,13.7056]
[1644472451785,6.06439994,111.71,111.69,0.024]
[1644472451987,16.293356,111.7,111.68,13.4328]
[1644472452187,38.47036783,111.7,111.68,13.4328]
[1644472452386,37.97036783,111.7,111.68,13.4328]
[1644472452990,23.6213,111.71,111.68,13.4328]
[1644472453289,23.6213,111.71,111.68,13.6828]
[1644472454090,63.72604026,111.71,111.68,13.6828]
[1644472454892,13.4317,111.74,111.68,13.6828]
[1644472455092,23.8581,111.74,111.68,39.96730443]
[1644472455991,44.74080573,111.73,111.68,85.89107983]
[1644472456191,44.74080573,111.73,111.68,39.96730443]
[1644472456792,44.99080573,111.73,111.68,39.96730443]
[1644472464702,44.99080573,111.73,111.68,38.1937]
[1644472467627,44.99080573,111.73,111.68,38.1697]
[1644472467831,44.99080573,111.73,111.69,0.024]
[1644472468128,44.99080573,111.73,111.7,13.4313]
[1644472468328,29.09758442,111.71,111.7,13.4313]
[1644472468929,32.83022942,111.71,111.7,13.4313]
[1644472470731,44.68792742,111.71,111.7,13.4313]
[1644472472130,65.81219842,111.71,111.7,13.4313]
[1644472475436,22.661045,111.71,111.7,13.4313]
[1644472475633,18.9284,111.71,111.7,13.4313]
[1644472476932,18.090017,111.71,111.7,13.4313]
[1644472477333,30.786099,111.71,111.7,13.4313]
[1644472480437,35.836148,111.71,111.66,46.54870443]
[1644472480736,68.691272,111.7,111.64,23.6496]
[1644472481140,16.4839454,111.69,111.64,23.6496]
[1644472481336,39.4889454,111.69,111.64,23.6496]
[1644472481539,42.95181713,111.67,111.64,23.6496]
[1644472481741,11.861946,111.66,111.65,13.436]
[1644472481938,42.95181713,111.67,111.63,114.3]
[1644472482739,42.95181713,111.67,111.64,13.4365]
[1644472482940,11.861946,111.66,111.64,13.4365]
[1644472483745,42.95181713,111.67,111.64,0.25]
[1644472484041,42.95181713,111.67,111.64,2.02360443]
[1644472484844,42.95181713,111.67,111.64,15.46070443]
[1644472485244,3.03219997,111.66,111.63,114.3]
[1644472485442,34.142163,111.65,111.62,1.77360443]
[1644472485643,42.95181713,111.67,111.61,23.2887]
[1644472485844,42.95181713,111.67,111.59,114.3]
[1644472486047,23.1193,111.66,111.59,114.3]
[1644472486345,18.33424124,111.65,111.6,15.21460443]
[1644472487143,18.33424124,111.65,111.6,15.46460443]
[1644472487745,18.58424124,111.65,111.6,15.46460443]
[1644472488145,18.58424124,111.65,111.6,15.21460443]
[1644472489448,18.58424124,111.65,111.6,15.46460443]
[1644472490347,0.25,111.65,111.6,15.46460443]
[1644472490547,23.1193,111.66,111.6,15.46460443]
[1644472490848,23.3693,111.66,111.6,15.46460443]
[1644472491351,23.3693,111.66,111.61,47.99694882]
[1644472491750,23.3693,111.66,111.6,15.46460443]
[1644472492672,23.26512616,111.65,111.6,15.46460443]
[1644472492853,23.3693,111.66,111.6,15.46460443]
[1644472494051,23.3693,111.66,111.61,41.19723756]
[1644472495754,23.3693,111.66,111.61,41.22123756]
[1644472499659,23.3693,111.66,111.61,54.91113756]
[1644472499859,23.3693,111.66,111.61,56.68474199]
[1644472500062,23.1193,111.66,111.61,56.68474199]
[1644472505088,24.8244,111.7,111.61,56.68474199]
[1644472505089,38.2613,111.7,111.61,56.68474199]
[1644472505289,24.7397,111.69,111.62,24.277]
[1644472505488,24.8244,111.7,111.64,13.4342]
[1644472505688,24.8244,111.7,111.65,0.024]
[1644472505889,24.8244,111.7,111.65,1.79760443]
[1644472506188,24.8244,111.7,111.65,36.34587525]
[1644472506795,24.8244,111.7,111.66,13.4331]
[1644472506991,16.65699207,111.71,111.66,13.4331]
[1644472507190,16.65699207,111.71,111.67,0.024]
[1644472508592,16.65699207,111.71,111.66,0.024]
[1644472508793,16.65699207,111.71,111.67,13.4332]
[1644472509193,16.90699207,111.71,111.67,13.4332]
[1644472512297,0.25,111.71,111.67,13.4332]
[1644472512696,23.4032,111.72,111.67,13.4572]
[1644472512996,16.946028,111.71,111.67,13.4572]
[1644472513396,16.946028,111.71,111.67,52.6092225]
[1644472514801,16.946028,111.71,111.67,52.8592225]
[1644472515395,16.946028,111.71,111.67,51.08561807]
[1644472515896,16.946028,111.71,111.67,52.8592225]
[1644472516296,23.4032,111.72,111.67,52.8592225]
[1644472516495,22.6831,111.74,111.67,65.3192225]
[1644472516698,1.27736033,111.75,111.67,65.3192225]
[1644472516897,1.30136033,111.76,111.68,22.5711]
[1644472517097,1.27736033,111.76,111.7,13.4271]
[1644472517299,0.024,111.76,111.7,50.41542692]
[1644472517497,0.024,111.76,111.7,52.18903135]
[1644472517796,0.024,111.76,111.7,64.64903135]
[1644472519604,0.024,111.76,111.7,15.45070443]
[1644472519806,0.024,111.76,111.7,13.4271]
[1644472520104,21.031328,111.75,111.68,1.77360443]
[1644472520303,22.8199,111.74,111.68,2.02360443]
[1644472520604,21.031328,111.73,111.68,48.88243362]
[1644472520803,48.67042917,111.74,111.68,48.88243362]
[1644472521405,48.67042917,111.74,111.68,48.63243362]
[1644472521406,22.8199,111.74,111.68,48.63243362]
[1644472521606,22.8199,111.74,111.69,13.4311]
[1644472522006,0.024,111.76,111.7,1.77362727]
[1644472522505,1.27736033,111.78,111.71,34.40700486]
[1644472522706,0.024,111.76,111.72,24.3467]
[1644472522906,0.024,111.76,111.72,37.7731]
[1644472523107,0.024,111.76,111.72,38.0231]
[1644472525612,0.024,111.76,111.72,39.79672727]
[1644472529213,0.024,111.76,111.72,15.45002727]
[1644472529413,0.024,111.76,111.7,44.7542]
[1644472529414,0.024,111.76,111.7,1.77362727]
[1644472529615,0.024,111.76,111.66,12.484]
[1644472529813,1.30136033,111.76,111.68,0.25]
[1644472530214,14.73106033,111.76,111.68,0.25]
[1644472530416,37.75232824,111.75,111.68,13.6818]
[1644472530615,37.75232824,111.75,111.69,38.67215251]
[1644472530817,37.75232824,111.75,111.69,38.92215251]
[1644472531017,23.2509,111.75,111.69,38.92215251]
[1644472532816,23.2509,111.75,111.69,52.35325251]
[1644472533016,23.5009,111.75,111.69,52.35325251]
[1644472534918,23.5009,111.75,111.69,64.81325251]
[1644472535318,23.2509,111.75,111.69,64.81325251]
[1644472535919,0.024,111.76,111.69,66.58687978]
[1644472536119,0.024,111.76,111.69,90.49027978]
[1644472537623,0.024,111.76,111.69,88.71665251]
[1644472538119,1.30136033,111.76,111.69,88.71665251]
[1644472538320,0.024,111.75,111.69,88.71665251]
[1644472538721,19.28902927,111.75,111.69,88.71665251]
[1644472539120,19.53902927,111.75,111.69,88.71665251]
[1644472540925,19.53902927,111.75,111.69,50.0445]
[1644472541326,34.2468896,111.75,111.69,50.0445]
[1644472541749,32.96952927,111.75,111.69,50.0445]
[1644472542048,19.53902927,111.75,111.69,50.0445]
[1644472542251,20.8163896,111.75,111.69,50.0445]
[1644472544251,20.8163896,111.75,111.7,41.54081667]
[1644472544452,20.8163896,111.75,111.7,54.97081667]
[1644472546757,1.55136033,111.75,111.7,54.97081667]
[1644472547661,1.55136033,111.75,111.7,55.22081667]
[1644472548359,25.94516968,111.75,111.7,55.22081667]
[1644472549358,1.55136033,111.75,111.7,55.22081667]
[1644472555369,1.30136033,111.75,111.7,56.99440582]
[1644472555564,0.024,111.75,111.7,56.99440582]
[1644472557165,0.024,111.75,111.71,18.46]
[1644472557366,1.27736033,111.77,111.72,13.4258]
[1644472557565,0.024,111.75,111.72,56.08808661]
[1644472557765,1.30136033,111.77,111.73,1.77358915]
[1644472557968,1.27736033,111.77,111.74,37.28396]
[1644472558366,1.27736033,111.77,111.73,1.77358915]
[1644472558568,1.27736033,111.77,111.73,2.02358915]
[1644472558768,1.27736033,111.77,111.74,13.4255]
[1644472562975,1.52736033,111.77,111.74,13.4255]
[1644472564276,3.03219997,111.76,111.74,13.4255]
[1644472564479,6.06439994,111.76,111.74,13.4255]
[1644472566484,1.55136033,111.77,111.74,13.4255]
[1644472566683,1.52736033,111.77,111.74,13.4255]
[1644472567809,0.25,111.77,111.74,13.4255]
[1644472568213,25.13816033,111.78,111.74,13.4255]
[1644472568413,17.211017,111.77,111.74,13.4255]
[1644472568812,17.211017,111.77,111.74,49.54838387]
[1644472569014,17.211017,111.77,111.74,13.4255]
[1644472571816,17.461017,111.77,111.74,13.4255]
[1644472572220,0.25,111.77,111.74,13.4255]
[1644472572415,25.13816033,111.78,111.74,13.4255]
[1644472572617,17.211017,111.77,111.74,13.4255]
[1644472573017,6.06439994,111.76,111.74,13.4255]
[1644472573416,3.03219997,111.76,111.74,13.4255]
[1644472573817,0.024,111.77,111.74,13.4255]
[1644472574017,25.13816033,111.78,111.74,13.4255]
[1644472574218,17.211017,111.77,111.74,13.4255]
[1644472574819,29.93589887,111.77,111.74,13.4255]
[1644472575019,6.06439994,111.76,111.74,13.4255]
[1644472575220,0.024,111.77,111.74,13.6755]
[1644472575420,25.13816033,111.78,111.74,13.6755]
[1644472575619,17.211017,111.77,111.74,13.6755]
[1644472580726,6.06439994,111.76,111.74,13.6755]
[1644472580927,17.235017,111.77,111.74,13.6755]
[1644472581126,17.211017,111.77,111.74,13.6755]
[1644472584530,6.06439994,111.76,111.74,13.6755]
[1644472584929,0.024,111.77,111.74,13.6755]
[1644472585130,61.71372365,111.78,111.74,13.6755]
[1644472585334,18.48837733,111.77,111.74,13.6755]
[1644472585534,1.27736033,111.77,111.74,13.6755]
[1644472587359,1.27736033,111.78,111.75,45.58616273]
[1644472587561,0.024,111.79,111.76,13.4227]
[1644472587759,0.024,111.79,111.76,15.44616938]
[1644472587959,25.74886033,111.8,111.76,15.44616938]
[1644472588759,25.74886033,111.8,111.77,41.90842526]
[1644472588962,25.74886033,111.8,111.78,13.4215]
[1644472589163,31.81326027,111.8,111.78,13.4215]
[1644472589560,7.34176027,111.8,111.78,13.4215]
[1644472589762,6.06439994,111.8,111.78,13.4215]
[1644472590962,1.27736033,111.81,111.78,13.4215]
[1644472591963,1.27736033,111.82,111.79,35.27091365]
[1644472592165,7.554402,111.81,111.8,13.4188]
[1644472593166,27.492726,111.82,111.8,13.4188]
[1644472593367,7.554402,111.81,111.8,13.4188]
[1644472593767,27.492726,111.82,111.8,13.4188]
[1644472593967,7.554402,111.81,111.8,13.4188]
[1644472594370,27.492726,111.82,111.8,13.4188]
[1644472595968,11.769794,111.82,111.8,15.44226938]
[1644472596170,11.771933,111.82,111.8,15.44226938]
[1644472596568,0.024,111.84,111.8,15.44226938]
[1644472596782,0.024,111.84,111.81,6.0]
[1644472596969,0.024,111.87,111.82,13.4108]
[1644472597169,23.38,111.89,111.82,13.4108]
[1644472597170,0.024,111.85,111.83,50.60387675]
[1644472597370,24.65736033,111.89,111.83,97.07854613]
[1644472597371,0.024,111.87,111.83,97.07854613]
[1644472597568,0.024,111.87,111.83,97.32854613]
[1644472597769,0.024,111.87,111.85,43.33939462]
[1644472597968,1.27736033,111.89,111.85,43.33939462]
[1644472598171,1.27736033,111.89,111.86,13.4094]
[1644472598172,0.024,111.88,111.86,13.4094]
[1644472598368,26.69901248,111.92,111.86,13.4094]
[1644472598369,1.30136033,111.9,111.86,13.4094]
[1644472599268,0.024,111.9,111.86,13.6594]
[1644472600169,0.024,111.9,111.87,37.17551933]
[1644472600370,0.024,111.9,111.87,50.58411933]
[1644472600670,0.024,111.9,111.87,50.83411933]
[1644472600871,25.45836033,111.92,111.87,50.83411933]
[1644472601074,0.024,111.91,111.87,52.60758871]
[1644472601271,24.181,111.92,111.87,52.60758871]
[1644472601974,0.024,111.92,111.87,52.60758871]
[1644472602173,0.024,111.93,111.87,52.60758871]
[1644472603575,0.024,111.93,111.87,65.06758871]
[1644472605076,36.34341475,111.93,111.87,65.06758871]
[1644472605277,0.024,111.92,111.87,63.29411933]
[1644472605877,0.024,111.92,111.87,49.88551933]
[1644472606278,0.024,111.92,111.87,12.46]
[1644472606478,11.903634,111.91,111.85,46.6133282]
[1644472606679,0.024,111.9,111.85,21.902]
[1644472607479,0.024,111.9,111.86,34.67274497]
[1644472607678,0.024,111.9,111.86,34.92274497]
[1644472607880,0.024,111.9,111.86,36.69607317]
[1644472608279,0.024,111.9,111.85,9.442]
[1644472608579,0.024,111.9,111.85,9.692]
[1644472609179,0.024,111.9,111.85,52.63631372]
[1644472609781,0.024,111.9,111.85,67.81944192]
[1644472614283,0.024,111.9,111.85,58.37744192]
[1644472614887,0.024,111.9,111.87,59.75926368]
[1644472615086,22.8003,111.92,111.87,59.75926368]
[1644472615387,0.024,111.93,111.88,1.7733282]
[1644472615585,0.024,111.95,111.88,20.2333282]
[1644472615786,0.024,111.95,111.88,20.4833282]
[1644472615985,0.024,111.95,111.89,45.11026578]
[1644472616185,0.024,111.95,111.89,45.36026578]
[1644472616786,0.024,111.95,111.89,58.76496578]
[1644472621491,0.024,111.95,111.89,56.99163758]
[1644472621690,17.28088914,111.95,111.89,56.99163758]
[1644472621890,11.88583,111.94,111.87,12.46]
[1644472622091,1.30136033,111.94,111.84,12.46]
[1644472622290,1.27736033,111.92,111.83,12.46]
[1644472622493,0.024,111.91,111.83,12.46]
[1644472622790,1.30136033,111.93,111.84,34.23382897]
[1644472622989,0.024,111.9,111.84,34.23382897]
[1644472623190,0.024,111.92,111.84,34.48382897]
[1644472623391,0.024,111.89,111.84,46.94382897]
[1644472623591,0.024,111.91,111.84,46.94382897]
[1644472623791,0.024,111.92,111.86,48.65254614]
[1644472623993,0.024,111.9,111.86,48.65254614]
[1644472624292,0.024,111.92,111.86,48.90254614]
[1644472624694,1.30136033,111.92,111.86,48.90254614]
[1644472624893,1.27736033,111.92,111.87,13.4085]
[1644472625095,0.024,111.91,111.87,13.4085]
[1644472625293,1.30136033,111.92,111.87,13.4085]
[1644472625495,1.30136033,111.91,111.84,35.8659]
[1644472625701,1.27736033,111.9,111.84,12.46]
[1644472625997,0.024,111.89,111.85,13.4107]
[1644472626193,1.27736033,111.9,111.85,13.4107]
[1644472626392,0.024,111.89,111.85,13.4107]
[1644472626593,0.024,111.9,111.85,50.7884894]
[1644472626795,17.4336696,111.9,111.85,50.7884894]
[1644472626993,1.30136033,111.9,111.85,52.5618176]
[1644472627193,1.27736033,111.91,111.85,52.8118176]
[1644472627395,1.27736033,111.92,111.85,52.5618176]
[1644472627598,0.024,111.9,111.85,52.8118176]
[1644472627817,1.27736033,111.91,111.85,15.1840282]
[1644472628017,53.01090133,111.9,111.83,1.7733282]
[1644472628218,1.27736033,111.88,111.78,44.7182]
[1644472628418,1.27736033,111.87,111.78,44.7182]
[1644472628619,1.27736033,111.86,111.78,44.7182]
[1644472628818,45.37832939,111.85,111.79,40.07168024]
[1644472629017,0.024,111.84,111.79,40.04304658]
[1644472629217,1.52736033,111.86,111.79,40.04304658]
[1644472629218,0.024,111.85,111.79,40.29304658]
[1644472629818,0.024,111.85,111.8,13.4165]
[1644472630222,0.024,111.85,111.8,13.6665]
[1644472631423,44.85640541,111.86,111.8,13.6665]
[1644472633223,27.189489,111.85,111.8,0.25]
[1644472633623,27.189489,111.85,111.77,12.71]
[1644472633822,44.85640541,111.86,111.77,12.71]
[1644472634323,44.85640541,111.86,111.78,35.99465853]
[1644472634823,44.85640541,111.86,111.8,13.4167]
[1644472635023,26.354916,111.85,111.8,53.66928961]
[1644472635226,30.396004,111.85,111.8,53.91928961]
[1644472636024,30.396004,111.85,111.8,13.6667]
[1644472637326,7.861854,111.85,111.81,38.01518253]
[1644472637526,44.85640541,111.86,111.81,38.01518253]
[1644472637728,25.957297,111.85,111.81,51.68048253]
[1644472637927,44.574564,111.87,111.81,51.68048253]
[1644472638133,48.53206033,111.89,111.81,51.68048253]
[1644472638328,113.500962,111.88,111.75,23.815]
[1644472638528,13.4182,111.86,111.76,44.7255]
[1644472638728,1.27736033,111.85,111.76,44.7255]
[1644472638930,14.69556033,111.86,111.76,57.1855]
[1644472639130,1.27736033,111.87,111.77,13.4194]
[1644472639329,1.27736033,111.87,111.77,60.2492996]
[1644472639730,1.27736033,111.87,111.77,60.4992996]
[1644472639929,1.27736033,111.87,111.77,83.7479996]
[1644472640429,48.24388015,111.87,111.77,83.7479996]
[1644472640830,61.66158015,111.87,111.77,83.7479996]
[1644472642131,14.69506033,111.87,111.77,83.7479996]
[1644472642331,1.27736033,111.88,111.8,13.4149]
[1644472642733,48.53206033,111.89,111.8,13.6649]
[1644472643235,48.53206033,111.89,111.81,35.55066517]
[1644472643433,78.991806,111.88,111.82,13.4136]
[1644472643633,60.767842,111.88,111.83,42.20961738]
[1644472643831,47.2547,111.89,111.83,42.20961738]
[1644472644035,47.2547,111.89,111.83,42.45961738]
[1644472645333,38.4376633,111.91,111.83,55.87191738]
[1644472645735,37.16030297,111.91,111.83,55.87191738]
[1644472646736,0.024,111.9,111.83,55.87191738]
[1644472647735,1.30136033,111.9,111.83,55.87191738]
[1644472648035,23.92838906,111.89,111.83,55.87191738]
[1644472648237,23.95238906,111.89,111.83,55.87191738]
[1644472649035,0.024,111.89,111.83,55.87191738]
[1644472649336,1.30136033,111.9,111.83,55.87191738]
[1644472649837,1.30136033,111.9,111.83,55.62191738]
[1644472650036,1.27736033,111.89,111.83,55.62191738]
[1644472650235,1.30136033,111.89,111.83,55.62191738]
[1644472651338,1.30136033,111.89,111.83,55.87191738]
[1644472657542,19.05114452,111.89,111.83,55.87191738]
[1644472658143,19.05114452,111.89,111.83,13.4123]
[1644472658343,1.27736033,111.88,111.82,13.4147]
[1644472658543,1.27736033,111.87,111.82,13.4147]
[1644472659343,1.27736033,111.87,111.82,52.96687525]
[1644472660346,1.27736033,111.87,111.82,53.21687525]
[1644472660547,1.30136033,111.88,111.82,53.21687525]
[1644472661747,42.56590647,111.87,111.82,13.4147]
[1644472661945,11.860808,111.86,111.81,13.4159]
[1644472662245,13.13816833,111.86,111.78,29.927]
[1644472662445,1.27736033,111.86,111.78,29.927]
[1644472662644,1.27736033,111.86,111.78,23.927]
[1644472662845,1.27736033,111.86,111.79,44.81052663]
[1644472663345,1.27736033,111.86,111.79,45.06052663]
[1644472663749,14.69536033,111.86,111.8,13.417]
[1644472664046,14.69536033,111.86,111.81,45.50146187]
[1644472664247,4.78868,111.85,111.81,45.50146187]
[1644472664648,4.78868,111.85,111.8,13.417]
[1644472664849,13.418,111.86,111.8,13.667]
[1644472665048,14.69536033,111.86,111.8,13.667]
[1644472665249,13.418,111.86,111.8,13.667]
[1644472665449,14.69536033,111.86,111.8,13.667]
[1644472665652,14.69536033,111.86,111.8,61.52805396]
[1644472665849,13.418,111.86,111.8,61.52805396]
[1644472666653,26.313448,111.85,111.8,61.52805396]
[1644472666853,26.313448,111.85,111.8,61.27805396]
[1644472667053,44.83623356,111.85,111.8,61.52805396]
[1644472667455,18.52278556,111.85,111.8,61.52805396]
[1644472667654,16.82674,111.84,111.78,13.4188]
[1644472667957,1.27736033,111.84,111.74,44.736]
[1644472668155,22.9854,111.83,111.73,23.1907]
[1644472668354,24.26276033,111.83,111.73,23.1907]
[1644472668556,66.8286668,111.83,111.74,44.35402585]
[1644472668754,65.55130647,111.83,111.74,44.35402585]
[1644472668981,65.55130647,111.83,111.74,68.75302585]
[1644472669176,78.97280647,111.83,111.75,13.4228]
[1644472669376,78.97280647,111.83,111.76,36.09442884]
[1644472671487,80.2501668,111.83,111.76,36.09442884]
[1644472672285,78.97280647,111.83,111.76,36.09442884]
[1644472674689,78.97280647,111.83,111.75,13.4222]
[1644472674890,78.97280647,111.83,111.75,13.6722]
[1644472675592,78.97280647,111.83,111.75,59.53112491]
[1644472677394,78.97280647,111.83,111.75,59.28112491]
[1644472678095,78.97280647,111.83,111.75,45.85892491]
[1644472680301,18.52278556,111.81,111.75,45.85892491]
[1644472680998,18.52278556,111.81,111.74,37.8228]
[1644472681499,38.833452,111.8,111.72,13.4254]
[1644472681706,18.52278556,111.81,111.71,114.3]
[1644472681999,36.73569176,111.79,111.71,114.324]
[1644472682399,43.73569176,111.79,111.71,114.324]
[1644472682904,43.73569176,111.79,111.72,37.92585071]
[1644472683700,13.4291,111.77,111.71,114.574]
[1644472684601,37.78210027,111.77,111.71,149.51250066]
[1644472687804,37.78210027,111.77,111.71,35.21250066]
[1644472690812,37.78210027,111.77,111.71,0.024]
[1644472691009,37.78210027,111.77,111.69,13.4538]
[1644472691309,37.78210027,111.77,111.7,0.024]
[1644472691509,37.78210027,111.77,111.69,0.024]
[1644472691711,47.95993393,111.75,111.69,34.63611093]
[1644472691914,47.95993393,111.75,111.7,0.024]
[1644472692111,47.95993393,111.75,111.69,34.63611093]
[1644472692510,47.95993393,111.75,111.69,34.88611093]
[1644472697734,47.95993393,111.75,111.69,34.63611093]
[1644472698136,36.483422,111.74,111.69,0.024]
[1644472698335,20.858066,111.73,111.65,0.024]
[1644472698534,40.796542,111.73,111.68,0.024]
[1644472698734,43.653843,111.73,111.66,0.024]
[1644472698935,23.7749,111.72,111.64,0.024]
[1644472699135,58.3569791,111.71,111.63,35.93801105]
[1644472699335,58.3569791,111.71,111.64,0.024]
[1644472699336,26.5597581,111.71,111.64,0.024]
[1644472699841,13.4357,111.71,111.64,0.024]
[1644472700937,37.2095,111.72,111.64,13.4594]
[1644472701138,37.2095,111.72,111.65,43.69617725]
[1644472701338,21.10204597,111.71,111.65,43.69617725]
[1644472702842,34.53794597,111.71,111.65,43.69617725]
[1644472703840,34.53794597,111.71,111.65,0.024]
[1644472704443,34.53794597,111.71,111.63,13.4605]
[1644472704645,34.53794597,111.71,111.64,0.024]
[1644472704844,34.53794597,111.71,111.64,48.15641027]
[1644472705047,34.53794597,111.71,111.65,0.024]
[1644472709349,34.53794597,111.71,111.64,0.024]
[1644472715555,37.2094,111.72,111.64,13.4595]
[1644472715754,37.2094,111.72,111.65,0.024]
[1644472716454,37.2094,111.72,111.65,45.93047199]
[1644472716654,50.42199962,111.73,111.65,59.61457199]
[1644472716855,36.98869962,111.73,111.65,59.61457199]
[1644472717261,36.98869962,111.73,111.65,72.07457199]
[1644472718760,60.8322,111.74,111.65,72.07457199]
[1644472718979,1.27736033,111.76,111.65,72.07457199]
[1644472719164,1.27736033,111.77,111.69,13.4293]
[1644472719366,1.27736033,111.77,111.7,23.5613]
[1644472719561,23.118,111.78,111.71,0.024]
[1644472719761,69.35750875,111.78,111.71,39.47999271]
[1644472720465,68.08014842,111.78,111.71,39.47999271]
[1644472720864,13.4285,111.77,111.71,52.90759271]
[1644472722764,13.4285,111.77,111.71,53.15759271]
[1644472723967,13.4285,111.77,111.71,52.90759271]
[1644472724166,13.4285,111.77,111.71,39.47999271]
[1644472724666,16.12654361,111.76,111.71,39.47999271]
[1644472724866,16.12654361,111.76,111.71,0.024]
[1644472725066,37.3026,111.75,111.69,0.024]
[1644472727668,48.57347467,111.74,111.69,0.024]
[1644472727868,50.15495667,111.74,111.69,0.024]
[1644472729972,19.535702,111.73,111.69,0.024]
[1644472730273,13.4351,111.72,111.67,0.024]
[1644472730473,13.4351,111.72,111.66,0.024]
[1644472730872,13.4351,111.72,111.66,40.32211993]
[1644472732374,13.4335,111.73,111.66,40.32211993]
[1644472732575,76.92996033,111.75,111.66,40.57211993]
[1644472732576,8.27736033,111.75,111.66,40.57211993]
[1644472732796,1.27736033,111.77,111.68,13.4307]
[1644472732976,25.88896033,111.79,111.69,36.3672]
[1644472733174,8.27736033,111.8,111.7,18.46]
[1644472733375,1.27736033,111.81,111.71,191.63868]
[1644472733575,23.2928,111.82,111.73,41.9467997]
[1644472733576,24.57016033,111.82,111.73,41.9467997]
[1644472733775,48.50173813,111.82,111.74,57.1975]
[1644472733977,48.50173813,111.82,111.75,51.54402909]
[1644472734178,24.57016033,111.82,111.75,51.79402909]
[1644472734776,23.2928,111.82,111.75,51.79402909]
[1644472735175,49.29507775,111.83,111.75,53.56288049]
[1644472735378,49.29507775,111.83,111.75,77.68688049]
[1644472735578,1.27736033,111.83,111.75,77.68688049]
[1644472736175,14.69806033,111.84,111.75,77.68688049]
[1644472736576,61.45663243,111.84,111.75,77.68688049]
[1644472737578,60.1792721,111.84,111.75,77.68688049]
[1644472739178,13.4207,111.84,111.75,77.68688049]
[1644472739382,14.69636033,111.86,111.75,77.68688049]
[1644472739578,7.0,111.87,111.75,77.68688049]
[1644472739579,1.27736033,111.87,111.76,6.0]
[1644472739779,1.27736033,111.87,111.79,13.4161]
[1644472740180,43.4761969,111.86,111.79,48.9750934]